lending/lending_fUSD_20260206
["ID","MTS","AMOUNT","RATE_DAILY","PERIOD"]
[404673432,1770412238822,-453.98370731,0.00016438,2]
[404673433,1770412238831,-511.81,0.00016438,2]
[404673434,1770412238841,-2584.3629481,0.0001669,2]
[404673435,1770412238850,-165.79,0.00016712,2]
[404673436,1770412238859,-1500.0,0.000168,2]
[404673437,1770412238869,-1293.79011009,0.00016936,2]
[404673438,1770412238879,-232.02367864,0.00016936,2]
[404673439,1770412238889,-300.0,0.00017,2]
[404673440,1770412238899,-500.0,0.00017,2]
[404673441,1770412238909,-1500.0,0.000172,2]
[404673442,1770412238919,-200.0,0.00017248,2]
[404673443,1770412238928,-305.85316486,0.0001731,2]
[404673444,1770412238938,-200.0,0.00017471,2]
[404673445,1770412238947,-1499.20404486,0.0001764,2]
[404673446,1770412238957,-6624.05669369,0.000177,2]
[404673447,1770412238967,-229520.3628255,0.00017783,2]
[404673448,1770412238976,-364.8834,0.0001782,2]
[404673449,1770412238985,-364.8834,0.0001782,2]
[404673450,1770412238996,-156.3786,0.0001783,2]
[404673451,1770412239006,-156.3786,0.0001788,2]
[404673452,1770412239015,-25000.0,0.00017891,3]
[404673453,1770412239024,-25000.0,0.000179,3]
[404673454,1770412239034,-10000.0,0.000179,2]
[404673455,1770412239043,-500.0,0.000179,2]
[404673456,1770412239053,-16343.14788591,0.000179,3]
[404673457,1770412239062,-1293.79011009,0.000179,2]
[404673458,1770412239072,-232.02367864,0.000179,2]
[404673459,1770412239081,-286.68082152,0.000179,2]
[404673460,1770412239092,-500.0,0.000179,2]
[404673461,1770412239101,-500.0,0.000179,2]
[404673462,1770412239111,-500.0,0.000179,2]
[404673463,1770412239121,-500.0,0.000179,2]
[404673464,1770412239131,-500.0,0.000179,2]
[404673465,1770412239141,-500.0,0.000179,2]
[404673466,1770412239151,-500.0,0.000179,2]
[404673467,1770412239160,-347.68754819,0.000179,2]
[404673468,1770412239170,-3286.7061808,0.00017918,2]
[404673469,1770412239179,-1274.60503352,0.00017933,2]
[404673470,1770412239188,-390.259499,0.00017975,7]
[404673471,1770412239198,-224.46993276,0.00017982,2]
[404673472,1770412239207,-215.09776102,0.0001799,2]
[404673473,1770412239217,-371.16179058,0.0001799,2]
[404673474,1770412239226,-36635.0791988,0.00017994,2]
[404673475,1770412239236,-11745.8387163,0.00017994,2]
[404673476,1770412239246,-5115.9114695,0.00017994,2]
[404673477,1770412239255,-230.49160217,0.00017997,2]
[404673478,1770412239265,-338.5110312,0.00017999,5]
[404673479,1770412239274,-1336.91403434,0.00017999,5]
[404673480,1770412239283,-202.419,0.00017999,2]
[404673481,1770412239292,-666.0,0.00017999,2]
[404673482,1770412239301,-300.0,0.00017999,2]
[404673483,1770412239310,-666.0,0.00017999,2]
[404673484,1770412239319,-300.0,0.00017999,2]
[404673485,1770412239328,-701103.29282057,0.00018,2]
[404673486,1770412239342,-4992.61308658,0.00018,2]
[404673487,1770412239353,-2256.70555665,0.00018,2]
[404673488,1770412239372,-847.97755342,0.00018,2]
[404673491,1770412239749,-838.48,0.000176,2]
[404673493,1770412239807,-661.52,0.000176,2]
[404673494,1770412239817,-1088.48,0.00018,2]
[404673495,1770412239829,-356.68236483,0.00018,2]
[404673496,1770412239840,-644.38,0.00018,2]
[404673497,1770412239973,-151.0,0.0001764,2]
[404673498,1770412239982,-665.87314472,0.00018,2]
[404673499,1770412240143,-1048668.78729042,0.00018,2]
[404673500,1770412240153,-4170300.04232778,0.00018,2]
[404673501,1770412240174,-2179.26069336,0.00018,2]
[404673502,1770412240187,-615.00501975,0.00018,2]
[404673509,1770412243459,-769420.36437292,0.00018,2]
[404673510,1770412244369,-477.94,0.00018,2]
[404673511,1770412244429,-9741.96053637,0.00018,2]
[404673512,1770412244487,-29858.36489582,0.00018,2]
[404673517,1770412245676,-1038.5489718,0.00018,2]
[404673521,1770412245733,-789.88461245,0.00018,2]
[404673523,1770412245745,-3048.13407353,0.00018,2]
[404673525,1770412245757,-2026.9453286,0.00018,2]
[404673531,1770412245843,-1467.04342059,0.00018,2]
[404673537,1770412245915,-4142.0,0.00018,2]
[404673539,1770412246640,-445.36956488,0.00018,2]
[404673540,1770412246652,-6671.96574154,0.00018,2]
[404673541,1770412263784,633.0,0.0003561,120]
[404673542,1770412271108,7003.8567,9.128e-05,2]
[404673543,1770412277378,2500.0,9.128e-05,2]
[404673544,1770412295542,1600.0,0.00025025,120]
[404673545,1770412295760,1600.0,0.000273,120]
[404673546,1770412307929,496.1533,9.128e-05,2]
[404673547,1770412307952,10000.01,9.128e-05,2]
[404673548,1770412307975,10000.01,9.128e-05,2]
[404673549,1770412307997,10000.01,9.128e-05,2]
[404673550,1770412308020,10000.01,9.128e-05,2]
[404673551,1770412308043,10000.01,9.128e-05,2]
[404673552,1770412308069,10000.01,9.128e-05,2]
[404673553,1770412308091,10000.01,9.128e-05,2]
[404673554,1770412308115,10000.01,9.128e-05,2]
[404673555,1770412308139,10000.01,9.128e-05,2]
[404673556,1770412321168,300.0,9.127e-05,2]
[404673557,1770412323658,711.0,0.0003561,120]
[404673558,1770412381238,300.0,9.127e-05,2]
[404673559,1770412501527,191.0,9.127e-05,2]
[404673560,1770412501702,300.0,9.127e-05,2]
[404673561,1770412501909,150.0,9.127e-05,2]
[404673562,1770412503246,300.0,9.127e-05,2]
[404673563,1770412531750,428.27701589,9.127e-05,2]
[404673564,1770412533301,150.0,9.101e-05,2]
[404673565,1770412533370,2523.8544918,9.128e-05,2]
[404673566,1770412536163,150.0,9.101e-05,2]
[404673567,1770412547488,5206.87849231,9.118e-05,2]
[404673568,1770412547511,10000.01,9.118e-05,2]
[404673569,1770412547533,10000.01,9.118e-05,2]
[404673570,1770412547558,10000.01,9.118e-05,2]
[404673571,1770412547580,10000.01,9.118e-05,2]
[404673572,1770412547601,2362.31456578,9.118e-05,2]
[404673573,1770412653622,1682.5696612,9.128e-05,2]
[404673574,1770412681502,300.0,9.127e-05,2]
[404673575,1770412696032,5655.12577302,9.028e-05,2]
[404673576,1770412696058,10000.01,9.028e-05,2]
[404673577,1770412696083,10000.01,9.028e-05,2]
[404673578,1770412696107,10000.01,9.028e-05,2]
[404673579,1770412696130,10000.01,9.028e-05,2]
[404673580,1770412696157,10000.01,9.028e-05,2]
[404673581,1770412696182,10000.01,9.028e-05,2]
[404673582,1770412696206,10000.01,9.028e-05,2]
[404673583,1770412696231,10000.01,9.028e-05,2]
[404673584,1770412707458,504.0,9.027e-05,2]
[404673585,1770412741201,300.0,9.027e-05,2]
[404673586,1770412745531,200.0,9.001e-05,2]
[404673587,1770412773831,1602.89147248,9.028e-05,2]
[404673588,1770412801339,300.0,9.027e-05,2]
[404673589,1770412804093,225.0,9.028e-05,2]
[404673590,1770412868462,299.79391112,9.027e-05,2]
[404673591,1770412871203,500.0,9.027e-05,2]
[404673592,1770412871253,375.49,9.027e-05,2]
[404673593,1770412893343,1780.489,8.848e-05,2]
[404673594,1770412893414,150.171,8.848e-05,2]
[404673595,1770412894152,1549.77268,9.028e-05,2]
[404673596,1770412921272,300.0,9.027e-05,2]
[404673597,1770412930805,150.0,9.001e-05,2]
[404673598,1770412981803,300.0,9.027e-05,2]
[404673599,1770413014231,1514.36015168,9.028e-05,2]
[404673600,1770413015826,8035.64984832,8.928e-05,2]
[404673601,1770413015852,10000.01,8.928e-05,2]
[404673602,1770413015878,10000.01,8.928e-05,2]
[404673603,1770413015902,10000.01,8.928e-05,2]
[404673604,1770413016099,10000.01,8.928e-05,2]
[404673605,1770413016126,10000.01,8.928e-05,2]
[404673606,1770413016151,10000.01,8.928e-05,2]
[404673607,1770413016177,10000.01,8.928e-05,2]
[404673608,1770413016202,10000.01,8.928e-05,2]
[404673609,1770413016227,10000.01,8.928e-05,2]
[404673610,1770413041203,300.0,8.927e-05,2]
[404673611,1770413072168,209.85573779,8.927e-05,2]
[404673613,1770413134471,1009.57343446,8.928e-05,2]
[404673614,1770413200753,24786.62457272,0.0003,120]
[404673615,1770413218889,151.0,8.925e-05,2]
[404673616,1770413221151,300.0,8.927e-05,2]
[404673618,1770413254681,673.0489563,8.928e-05,2]
[404673619,1770413281233,300.0,8.927e-05,2]
[404673621,1770413312246,7056.53187145,8.828e-05,2]
[404673622,1770413312279,10000.01,8.828e-05,2]
[404673623,1770413312310,10000.01,8.828e-05,2]
[404673624,1770413312342,10000.01,8.828e-05,2]
[404673625,1770413312370,10000.01,8.828e-05,2]
[404673626,1770413312399,10000.01,8.828e-05,2]
[404673627,1770413312427,10000.01,8.828e-05,2]
[404673628,1770413312452,10000.01,8.828e-05,2]
[404673629,1770413312478,10000.01,8.828e-05,2]
[404673630,1770413312504,10000.01,8.828e-05,2]
[404673632,1770413363151,-560.69448995,8.828e-05,2]
[404673633,1770413401200,1200.0,8.827e-05,2]
[404673634,1770413404415,223.0,8.828e-05,2]
[404673646,1770413431818,-2400.0,8.828e-05,2]
[404673648,1770413431877,-703.42361001,8.828e-05,2]
[404673649,1770413431889,-9223.5,8.828e-05,2]
[404673650,1770413431899,-772.22552744,8.828e-05,2]
[404673651,1770413431940,-959697.52919233,8.828e-05,2]
[404673652,1770413431951,-212764.92418773,8.828e-05,2]
[404673653,1770413431963,-258910.8177446,8.828e-05,2]
[404673654,1770413431974,-454242.94552297,8.828e-05,2]
[404673655,1770413431985,-1254.41808677,8.828e-05,2]
[404673656,1770413431996,-875.49,8.828e-05,2]
[404673658,1770413432007,-1594.4736441,8.828e-05,2]
[404673661,1770413437848,-1499942.93612265,8.828e-05,2]
[404673662,1770413437858,-2500.0,8.828e-05,2]
[404673663,1770413437867,-1416553.90582296,8.828e-05,2]
[404673664,1770413437905,-13003.40650649,8.828e-05,2]
[404673665,1770413437943,-366.06223353,8.828e-05,2]
[404673666,1770413437954,-1935.93776647,8.828e-05,2]
[404673667,1770413437965,-706.40752,8.828e-05,2]
[404673668,1770413437977,-67434.28015055,8.828e-05,2]
[404673669,1770413437986,-448.6993042,8.878e-05,2]
[404673670,1770413437995,-250.0,8.878e-05,2]
[404673671,1770413438005,-250.0,8.966e-05,2]
[404673672,1770413438014,-1861.02054525,9.028e-05,2]
[404673673,1770413438026,-592.00000003,9.028e-05,2]
[404673689,1770413439948,-694.06535606,9.028e-05,2]
[404673690,1770413440062,-6852.91409866,9.028e-05,2]
[404673691,1770413440072,-151.0,9.125e-05,2]
[404673692,1770413440082,-421.997,9.128e-05,2]
[404673693,1770413440091,-33301.6812,9.128e-05,2]
[404673694,1770413440101,-162.4674,9.128e-05,2]
[404673695,1770413440110,-1426.4246411,9.142e-05,2]
[404673696,1770413440119,-1680.0,9.71e-05,2]
[404673697,1770413440129,-250.0,9.711e-05,2]
[404673698,1770413440138,-16137.28267066,0.0001,2]
[404673699,1770413440149,-297.72806704,0.0001,2]
[404673700,1770413440235,-78626.08881091,0.0001,2]
[404673701,1770413440245,-151.0,0.0001,2]
[404673702,1770413440254,-151.0,0.0001,2]
[404673703,1770413440264,-151.0,0.0001,2]
[404673704,1770413440274,-151.0,0.0001,2]
[404673705,1770413440287,-151.0,0.0001,2]
[404673707,1770413440296,-151.0,0.0001,2]
[404673708,1770413440305,-151.0,0.0001,2]
[404673710,1770413440314,-151.0,0.0001,2]
[404673711,1770413440323,-151.0,0.0001,2]
[404673712,1770413440332,-151.0,0.0001,2]
[404673713,1770413440342,-151.0,0.0001,2]
[404673714,1770413440351,-151.0,0.0001,2]
[404673715,1770413440360,-151.0,0.0001,2]
[404673716,1770413440370,-151.0,0.0001,2]
[404673717,1770413440379,-151.0,0.0001,2]
[404673718,1770413440388,-151.0,0.0001,2]
[404673719,1770413440397,-151.0,0.0001,2]
[404673720,1770413440407,-151.0,0.0001,2]
[404673721,1770413440416,-151.0,0.0001,2]
[404673722,1770413440425,-151.0,0.0001,2]
[404673723,1770413440434,-1059.78,0.0001,2]
[404673724,1770413440443,-4172.15,0.0001,2]
[404673725,1770413440453,-1109.17727203,0.0001,2]
[404673726,1770413440462,-1109.17727203,0.0001,2]
[404673727,1770413440471,-1059.78,0.00010274,2]
[404673728,1770413440481,-55531.37980097,0.0001052,2]
[404673729,1770413440490,-5274.08,0.0001052,2]
[404673730,1770413440499,-310.94,0.0001052,2]
[404673731,1770413440509,-999.99,0.0001052,2]
[404673732,1770413440518,-150.99,0.0001052,2]
[404673733,1770413440527,-9999.99,0.0001052,2]
[404673734,1770413440536,-9999.99,0.0001052,2]
[404673735,1770413440545,-1059.78,0.00010548,2]
[404673736,1770413440554,-2351.0,0.00010681,2]
[404673737,1770413440563,-9999.99,0.0001077,2]
[404673738,1770413440572,-150.99,0.0001077,2]
[404673739,1770413440581,-9999.99,0.0001077,2]
[404673740,1770413440590,-9999.99,0.0001077,2]
[404673741,1770413440600,-299.99,0.0001077,2]
[404673742,1770413440609,-1029.68956309,0.000108,2]
[404673743,1770413440618,-1426.4246411,0.0001082,2]
[404673744,1770413440627,-1059.78,0.00010822,2]
[404673745,1770413440636,-2657.15059868,0.000109,2]
[404673746,1770413440646,-2657.15059863,0.000109,2]
[404673747,1770413440658,-231.94764953,0.00010959,2]
[404673748,1770413440668,-9441.3924389,0.00011,2]
[404673749,1770413440677,-1059.78,0.00011096,2]
[404673750,1770413440687,-9305.13957111,0.00011099,2]
[404673751,1770413440696,-9305.13957108,0.00011099,2]
[404673752,1770413440706,-9305.13957108,0.00011099,2]
[404673753,1770413440714,-1059.78,0.0001137,2]
[404673754,1770413440723,-2657.15059863,0.00011563,2]
[404673755,1770413440733,-1059.78,0.00011644,2]
[404673756,1770413440743,-250.0,0.00011665,2]
[404673757,1770413440754,-3292.0,0.00011749,2]
[404673758,1770413440763,-9305.13957108,0.00011852,2]
[404673759,1770413440772,-1059.78,0.00011918,2]
[404673760,1770413440781,-1059.78,0.00012192,2]
[404673761,1770413440792,-286.28691038,0.00012217,2]
[404673762,1770413440801,-600.0,0.00012367,2]
[404673763,1770413440811,-332.12,0.00012417,2]
[404673764,1770413440822,-1059.78,0.00012466,2]
[404673765,1770413440831,-1426.4246411,0.00012498,2]
[404673766,1770413440841,-308.03413378,0.000125,2]
[404673767,1770413440850,-1059.78,0.0001274,2]
[404673768,1770413440859,-379.94,0.00012781,2]
[404673769,1770413440868,-2657.15059863,0.0001283,2]
[404673770,1770413440878,-9305.13957108,0.0001286,2]
[404673771,1770413440887,-1899.0,0.00012924,2]
[404673772,1770413440896,-5616.6537447,0.00013,2]
[404673773,1770413440906,-357.78028329,0.00013,2]
[404673774,1770413440915,-677.9138459,0.00013,2]
[404673775,1770413440924,-1059.83175409,0.00013014,2]
[404673776,1770413440934,-160.0,0.0001316,2]
[404673777,1770413440943,-3917.67,0.00013283,2]
[404673778,1770413440952,-448.6993042,0.00013339,2]
[404673779,1770413440961,-6908.73,0.00013361,2]
[404673780,1770413440970,-3240.0,0.00013425,2]
[404673781,1770413440979,-3524.82,0.00013445,2]
[404673782,1770413440989,-1029.4,0.00013457,2]
[404673783,1770413440998,-1029.4,0.00013481,2]
[404673784,1770413441007,-1029.4,0.00013506,2]
[404673785,1770413441017,-1029.4,0.00013531,2]
[404673786,1770413441233,-150.0,0.00013553,2]
[404673787,1770413441245,-1029.4,0.00013556,2]
[404673788,1770413441254,-209.57,0.00013571,2]
[404673789,1770413441264,-1029.4,0.00013581,2]
[404673790,1770413441274,-1029.4,0.00013605,2]
[404673791,1770413441283,-1029.4,0.0001363,2]
[404673792,1770413441292,-1029.4,0.00013655,2]
[404673793,1770413441302,-1029.4,0.0001368,2]
[404673794,1770413441311,-205.05385539,0.00013698,2]
[404673795,1770413441321,-500.0,0.00013698,2]
[404673796,1770413441330,-500.0,0.00013698,2]
[404673797,1770413441339,-500.0,0.00013698,2]
[404673798,1770413441348,-200.0,0.00013699,2]
[404673799,1770413441357,-500.0,0.00013699,2]
[404673800,1770413441370,-1029.4,0.00013705,2]
[404673801,1770413441379,-1029.4,0.00013729,2]
[404673802,1770413441388,-1029.4,0.00013754,2]
[404673803,1770413441398,-166.66,0.00013779,2]
[404673804,1770413441407,-1029.4,0.00013779,2]
[404673805,1770413441416,-1029.4,0.00013804,2]
[404673806,1770413441425,-1029.4,0.00013829,2]
[404673807,1770413441434,-1029.4,0.00013853,2]
[404673808,1770413441444,-9305.13957108,0.00013868,2]
[404673809,1770413441454,-1029.4,0.00013878,2]
[404673810,1770413441463,-1029.4,0.00013903,2]
[404673811,1770413441472,-1029.4,0.00013928,2]
[404673812,1770413441481,-2657.15059863,0.00014098,2]
[404673813,1770413441491,-1426.4246411,0.00014175,2]
[404673814,1770413441501,-166.66,0.00014234,2]
[404673815,1770413441510,-1000.0,0.00014247,2]
[404673816,1770413441519,-166.66,0.00014688,2]
[404673817,1770413441528,-1500.0,0.00014795,2]
[404673818,1770413441538,-9305.13957108,0.00014876,2]
[404673819,1770413441547,-250.0,0.00015,2]
[404673820,1770413441556,-2052.7152301,0.00015,2]
[404673821,1770413441565,-7991.45940556,0.00015,2]
[404673822,1770413441575,-225.37,0.00015068,2]
[404673823,1770413441584,-166.66,0.00015143,2]
[404673824,1770413441593,-500.0,0.00015294,2]
[404673825,1770413441602,-1000.0,0.00015342,2]
[404673826,1770413441612,-2657.15059863,0.00015365,2]
[404673827,1770413441621,-166.66,0.00015598,2]
[404673828,1770413441631,-2242.664997,0.00015807,2]
[404673829,1770413441641,-1426.4246411,0.00015853,2]
[404673830,1770413441651,-9305.13957108,0.00015884,2]
[404673831,1770413441660,-3319.5632726,0.00016,2]
[404673832,1770413441669,-166.66,0.00016053,2]
[404673833,1770413441678,-557.31,0.000161,2]
[404673834,1770413441688,-237758.40111389,0.000162,5]
[404673835,1770413441697,-206.89,0.00016428,2]
[404673836,1770413441707,-453.98370731,0.00016438,2]
[404673837,1770413441717,-227.37,0.00016438,2]
[404673838,1770413441726,-225.37,0.00016438,2]
[404673839,1770413441735,-1901.02614896,0.00016483,2]
[404673840,1770413441751,-200.0,0.00016492,2]
[404673841,1770413441760,-2657.15059863,0.00016633,2]
[404673842,1770413441769,-1500.0,0.000168,2]
[404673843,1770413441779,-9305.13957108,0.00016892,2]
[404673844,1770413441787,-500.0,0.00017,2]
[404673845,1770413441797,-300.0,0.00017,2]
[404673846,1770413441806,-377317.39142552,0.00017,2]
[404673847,1770413441816,-371.675712,0.00017005,7]
[404673848,1770413441827,-247.78381,0.00017005,7]
[404673849,1770413441836,-200.0,0.00017112,2]
[404673850,1770413441846,-200.0,0.00017182,2]
[404673851,1770413441855,-305.85316486,0.0001731,2]
[404673852,1770413441863,-200.0,0.00017381,2]
[404673853,1770413441873,-200.0,0.00017386,2]
[404673854,1770413441882,-1426.4246411,0.00017531,2]
[404673855,1770413441891,-1500.0,0.000176,2]
[404673856,1770413441901,-1109.17727203,0.0001763,2]
[404673857,1770413441910,-2998.4080897,0.0001764,2]
[404673858,1770413441919,-200.0,0.00017659,2]
[404673859,1770413441929,-6624.05669369,0.000177,2]
[404673860,1770413441939,-234.5679,0.0001782,2]
[404673861,1770413441948,-234.5679,0.0001782,2]
[404673862,1770413441958,-200.0,0.00017856,2]
[404673863,1770413441967,-25000.0,0.00017891,3]
[404673864,1770413441976,-2657.15059863,0.000179,2]
[404673865,1770413441985,-500.0,0.000179,2]
[404673866,1770413441995,-25000.0,0.000179,3]
[404673867,1770413442005,-16343.14788591,0.000179,3]
[404673868,1770413442015,-9305.13957108,0.000179,2]
[404673869,1770413442025,-448.6993042,0.000179,2]
[404673870,1770413442034,-500.0,0.000179,2]
[404673871,1770413442044,-500.0,0.000179,2]
[404673872,1770413442053,-500.0,0.000179,2]
[404673873,1770413442063,-500.0,0.000179,2]
[404673874,1770413442072,-500.0,0.000179,2]
[404673875,1770413442081,-500.0,0.000179,2]
[404673876,1770413442090,-500.0,0.000179,2]
[404673877,1770413442099,-347.68754819,0.000179,2]
[404673878,1770413442108,-1985.0,0.000179,2]
[404673879,1770413442118,-224.46993276,0.00017982,2]
[404673880,1770413442129,-202255.88709661,0.0001799,3]
[404673881,1770413442138,-151.0,0.00017997,2]
[404673882,1770413442147,-1675.42506554,0.00017999,5]
[404673883,1770413442157,-300.0,0.00017999,2]
[404673884,1770413442166,-666.0,0.00017999,2]
[404673885,1770413442175,-300.0,0.00017999,2]
[404673886,1770413442184,-300.0,0.00017999,2]
[404673887,1770413442193,-300.0,0.00017999,2]
[404673888,1770413442203,-666.0,0.00017999,2]
[404673889,1770413442212,-319622.43748292,0.00018,2]
[404673890,1770413442222,-7503.52481063,0.00018,2]
[404673891,1770413442231,-2551.2516386,0.00018,2]
[404673892,1770413442240,-109560.53726566,0.00018,2]
[404673893,1770413442251,-3439192.85539935,0.00018,2]
[404673894,1770413442296,-323.311332,0.00018,2]
[404673909,1770413443681,-447.27153168,0.00018,2]
[404673910,1770413443692,-13633.86176998,0.00018,2]
[404673911,1770413443703,-2370.5,0.00018,2]
[404673912,1770413444500,-855.29577412,0.00018,2]
[404673913,1770413444512,-970.69084894,0.00018,2]
[404673914,1770413444523,-27707.53849317,0.00018,2]
[404673915,1770413444535,-15609.7207934,0.00018,2]
[404673916,1770413444559,-5775.88703482,0.00018,2]
[404673917,1770413444570,-17641.84952162,0.00018,2]
[404673918,1770413444581,-6991.83373034,0.00018,2]
[404673919,1770413444591,-380.98206733,0.00018,2]
[404673920,1770413444602,-735.24608787,0.00018,2]
[404673921,1770413444614,-68306.04440543,0.00018,2]
[404673922,1770413444623,-165808.77284344,0.00018,2]
[404673923,1770413444632,-102099.41573438,0.00018,2]
[404673930,1770413445883,-899.14048049,0.00018,2]
[404673932,1770413445895,-4400.33003597,0.00018,2]
[404673935,1770413445906,-330.15551753,0.00018,2]
[404673936,1770413445957,-12889.35044502,0.00018,2]
[404673937,1770413446113,-4113.8459574,0.00018,2]
[404673941,1770413446890,-371.095,0.00018,2]
[404673942,1770413446901,-1070.21451001,0.00018,2]
[404673943,1770413452790,10000.01,8.828e-05,2]
[404673944,1770413452813,10000.01,8.828e-05,2]
[404673945,1770413452835,10000.01,8.828e-05,2]
[404673946,1770413452857,3301.6512,8.828e-05,2]
[404673947,1770413464196,1696.0,0.0003561,120]
[404673948,1770413464972,1048.0,0.0003561,120]
[404673949,1770413468453,6698.3588,8.828e-05,2]
[404673950,1770413468478,10000.01,8.828e-05,2]
[404673951,1770413468504,10000.01,8.828e-05,2]
[404673952,1770413468529,10000.01,8.828e-05,2]
[404673953,1770413468555,10000.01,8.828e-05,2]
[404673954,1770413468580,10000.01,8.828e-05,2]
[404673955,1770413468608,10000.01,8.828e-05,2]
[404673956,1770413468635,10000.01,8.828e-05,2]
[404673957,1770413468661,10000.01,8.828e-05,2]
[404673958,1770413468685,10000.01,8.828e-05,2]
[404673959,1770413471501,-7417.27920097,8.828e-05,2]
[404673960,1770413471614,-10000.01,8.828e-05,2]
[404673961,1770413478496,-10000.01,8.828e-05,2]
[404673962,1770413478668,-10000.01,8.828e-05,2]
[404673963,1770413478780,-10000.01,8.828e-05,2]
[404673964,1770413479046,-10000.01,8.828e-05,2]
[404673965,1770413479194,-10000.01,8.828e-05,2]
[404673966,1770413479302,-10000.01,8.828e-05,2]
[404673967,1770413479443,-10000.01,8.828e-05,2]
[404673968,1770413479685,-10000.01,8.828e-05,2]
[404673969,1770413479928,-10000.01,8.828e-05,2]
[404673970,1770413480056,-10000.01,8.828e-05,2]
[404673971,1770413480193,-10000.01,8.828e-05,2]
[404673972,1770413480326,-10000.01,8.828e-05,2]
[404673973,1770413480464,-10000.01,8.828e-05,2]
[404673974,1770413480579,-10000.01,8.828e-05,2]
[404673975,1770413480692,-10000.01,8.828e-05,2]
[404673976,1770413489076,1675.42506554,8.827e-05,3]
[404673980,1770413513625,237.75834894,8.827e-05,2]
[404673981,1770413521539,300.0,8.827e-05,2]
[404673982,1770413522808,641.0,0.0003561,120]
[404673983,1770413531211,2500.0,8.728e-05,2]
[404673984,1770413549305,392.0,0.0003561,120]
[404673985,1770413562279,1962.25165106,8.728e-05,2]
[404673986,1770413562302,5000.01,8.728e-05,2]
[404673987,1770413562323,5000.01,8.728e-05,2]
[404673988,1770413562344,5000.01,8.728e-05,2]
[404673989,1770413562365,5000.01,8.728e-05,2]
[404673990,1770413562390,10000.01,8.728e-05,2]
[404673991,1770413562413,10000.01,8.728e-05,2]
[404673992,1770413562434,10000.01,8.728e-05,2]
[404673993,1770413562460,10000.01,8.728e-05,2]
[404673994,1770413562483,10000.01,8.728e-05,2]
[404673995,1770413562505,10000.01,8.728e-05,2]
[404673996,1770413562527,10000.01,8.728e-05,2]
[404673997,1770413562548,10000.01,8.728e-05,2]
[404673998,1770413562571,10000.01,8.728e-05,2]
[404673999,1770413562594,10000.01,8.728e-05,2]
[404674000,1770413563295,-5000.01,8.728e-05,2]
[404674001,1770413581203,300.0,8.727e-05,2]
[404674002,1770413581828,150.0,8.727e-05,2]
[404674003,1770413701199,300.0,8.727e-05,2]
[404674004,1770413701231,1200.0,8.727e-05,2]
[404674005,1770413761838,150.0,8.727e-05,2]
[404674006,1770413779789,500.0,8.727e-05,2]
[404674007,1770413779841,500.0,8.727e-05,2]
[404674008,1770413779893,500.0,8.727e-05,2]
[404674009,1770413779960,500.0,8.727e-05,2]
[404674010,1770413780010,505.8735973,8.727e-05,2]
[404674011,1770413790354,394.1364027,8.628e-05,2]
[404674012,1770413790379,5000.01,8.628e-05,2]
[404674013,1770413790402,5000.01,8.628e-05,2]
[404674014,1770413790425,5000.01,8.628e-05,2]
[404674015,1770413790449,5000.01,8.628e-05,2]
[404674016,1770413790472,5000.01,8.628e-05,2]
[404674017,1770413790496,5000.01,8.628e-05,2]
[404674018,1770413790521,5000.01,8.628e-05,2]
[404674019,1770413790546,10000.01,8.628e-05,2]
[404674020,1770413790571,10000.01,8.628e-05,2]
[404674021,1770413790596,10000.01,8.628e-05,2]
[404674022,1770413790620,10000.01,8.628e-05,2]
[404674023,1770413790646,10000.01,8.628e-05,2]
[404674024,1770413790671,10000.01,8.628e-05,2]
[404674025,1770413790695,10000.01,8.628e-05,2]